[Event "HUN-chT Youth 2019"]
[Site "Budapest"]
[Date "2019.10.27"]
[Round "2.3"]
[White "Nagy, Botond"]
[Black "Meszaros, Jazmin"]
[Result "1-0"]
[ECO "D31"]
[WhiteElo "1281"]
[BlackElo "1171"]
[Annotator "NA RC"]
[PlyCount "45"]
[EventDate "2019.10.26"]
[EventType "team-tourn"]
[EventCountry "HUN"]
[SourceTitle "playchess.com"]
[Source "ChessBase"]
[SourceQuality "1"]
[TimeControl "5400+30"]

1. d4 {[%emt 0:00:00]} d5 {[%emt 0:01:10]} 2. c4 {[%emt 0:00:00]} e6 {[%emt 0:02:16]} 3. Nc3 {[%emt 0:00:23]} Be7 {[%emt 0:01:26]} 4. Bf4 {[%emt 0:01:17]} Nc6 {[%emt 0:01:41]} 5. e3 {[%emt 0:00:59]} Nf6 {[%emt 0:00:33]} 6. Nf3 {[%emt 0:00:50]} O-O {[%emt 0:01:20]} 7. Be2 {[%emt 0:00:33]} Ne4 {[%emt 0:03:12]} 8. Nxe4 {[%emt 0:02:37]} dxe4 {[%emt 0:00:47]} 9. Nd2 {[%emt 0:00:17]} Bg5 {[%emt 0:02:43]} 10. Bg3 {[%emt 0:01:08]} Ne7 {[%emt 0:01:07]} 11. Nxe4 {[%emt 0:01:06]} Nf5 {[%emt 0:01:28]} 12. Bf3 {[%emt 0:01:48]} Nxg3 {[%emt 0:00:41]} 13. Nxg3 {[%emt 0:00:30]} Bh4 {[%emt 0:00:53]} 14. Qc2 {[%emt 0:00:42]} Bxg3 {[%emt 0:01:27]} 15. hxg3 {[%emt 0:00:34]} g6 {[%emt 0:01:04]} 16. O-O-O {[%emt 0:00:32]} Qd6 {[%emt 0:01:02]} 17. Rh2 {[%emt 0:00:57]} Qa6 {[%emt 0:01:41]} 18. a3 {[%emt 0:01:07]} Bd7 {[%emt 0:00:36]} 19. Rdh1 {[%emt 0:00:36]} Ba4 {[%emt 0:00:57]} 20. Qc3 {[%emt 0:00:11]} Rac8 {[%emt 0:01:35]} 21. Rxh7 {[%emt 0:00:38]} b5 {[%emt 0:00:42]} 22. d5 {[%emt 0:02:56]} bxc4 {[%emt 0:01:45]} 23. Qg7# {[%emt 0:00:20]} 1-0

[Event "HUN-chT Youth 2019"]
[Site "Budapest"]
[Date "2019.10.27"]
[Round "2.4"]
[White "Tancz, Janos"]
[Black "Kiss, Eniko"]
[Result "1-0"]
[ECO "B56"]
[WhiteElo "1486"]
[BlackElo "1703"]
[Annotator "NA RC"]
[PlyCount "59"]
[EventDate "2019.10.26"]
[EventType "team-tourn"]
[EventCountry "HUN"]
[SourceTitle "playchess.com"]
[Source "ChessBase"]
[SourceQuality "1"]
[TimeControl "5400+30"]

1. e4 {[%emt 0:00:00]} c5 {[%emt 0:02:31]} 2. Nf3 {[%emt 0:00:00]} d6 {[%emt 0:00:11]} 3. d4 {[%emt 0:00:00]} Nf6 {[%emt 0:01:24]} 4. Nc3 {[%emt 0:00:49]} cxd4 {[%emt 0:05:19]} 5. Nxd4 {[%emt 0:00:13]} Nc6 {[%emt 0:01:04]} 6. Be3 {[%emt 0:03:41]} Ng4 {[%emt 0:01:48]} 7. Nxc6 {[%emt 0:01:53]} bxc6 {[%emt 0:01:07]} 8. Bf4 {[%emt 0:10:28]} Qb6 {[%emt 0:01:52]} 9. Qd2 {[%emt 0:04:32]} Qxb2 {[%emt 0:08:33]} 10. Rb1 {[%emt 0:00:46]} Qa3 {[%emt 0:00:11]} 11. f3 {[%emt 0:04:35]} Nf6 {[%emt 0:01:06]} 12. e5 {[%emt 0:05:15]} Nh5 {[%emt 0:01:22]} 13. Be3 {[%emt 0:01:52]} dxe5 {[%emt 0:04:31]} 14. Rd1 {[%emt 0:02:33]} Qd6 {[%emt 0:01:51]} 15. Bc5 {[%emt 0:07:39]} Qxd2+ {[%emt 0:01:27]} 16. Rxd2 {[%emt 0:00:13]} g6 {[%emt 0:03:44]} 17. Nb5 {[%emt 0:00:12]} Bh6 {[%emt 0:04:10]} 18. Nc7+ {[%emt 0:00:55]} Kf8 {[%emt 0:00:20]} 19. Rd8+ {[%emt 0:00:09]} Kg7 {[%emt 0:00:24]} 20. Rxh8 {[%emt 0:00:10]} Rb8 {[%emt 0:02:45]} 21. Rd8 {[%emt 0:01:18]} Nf6 {[%emt 0:02:23]} 22. Bxe7 {[%emt 0:01:25]} Rb1+ {[%emt 0:02:35]} 23. Ke2 {[%emt 0:00:19]} Bf5 {[%emt 0:01:21]} 24. Bf8+ {[%emt 0:00:14]} Kh8 {[%emt 0:00:35]} 25. Bxh6+ {[%emt 0:00:06]} Ng8 {[%emt 0:00:03]} 26. Bg5 {[%emt 0:01:03]} Kg7 {[%emt 0:02:19]} 27. Ne8+ {[%emt 0:00:08]} Kf8 {[%emt 0:00:16]} 28. Nf6+ {[%emt 0:00:18]} Ke7 {[%emt 0:01:09]} 29. Nxg8+ Ke6 30. Kd2 {[%emt 0:01:17]} 1-0

[Event "HUN-chT Youth 2019"]
[Site "Budapest"]
[Date "2019.10.27"]
[Round "2.4"]
[White "Szuhorukov, Viktor"]
[Black "Nagy, Levente"]
[Result "0-1"]
[ECO "B34"]
[WhiteElo "1213"]
[BlackElo "2092"]
[Annotator "NA RC"]
[PlyCount "46"]
[EventDate "2019.10.26"]
[EventType "team-tourn"]
[EventCountry "HUN"]
[SourceTitle "playchess.com"]
[Source "ChessBase"]
[SourceQuality "1"]
[TimeControl "5400+30"]

1. e4 {[%emt 0:00:00]} c5 {[%emt 0:00:00]} 2. Nf3 {[%emt 0:00:00]} Nc6 {[%emt 0:00:22]} 3. d4 {[%emt 0:00:05]} cxd4 {[%emt 0:00:39]} 4. Nxd4 {[%emt 0:00:11]} g6 {[%emt 0:00:43]} 5. Nc3 {[%emt 0:00:38]} Bg7 {[%emt 0:00:29]} 6. Be3 {[%emt 0:00:31]} Nf6 {[%emt 0:00:27]} 7. Qd2 {[%emt 0:01:52]} O-O {[%emt 0:00:20]} 8. O-O-O {[%emt 0:01:28]} Ng4 {[%emt 0:00:50]} 9. Nb3 {[%emt 0:06:06]} Nxe3 {[%emt 0:02:17]} 10. Qxe3 {[%emt 0:00:56]} d6 {[%emt 0:01:01]} 11. f3 {[%emt 0:03:38]} Be6 {[%emt 0:02:43]} 12. Nc5 {[%emt 0:06:42]} Qb6 {[%emt 0:09:08]} 13. N3a4 {[%emt 0:02:43]} Qb4 {[%emt 0:01:47]} 14. c3 {[%emt 0:07:01]} Qa5 {[%emt 0:00:30]} 15. Nxe6 {[%emt 0:04:34]} fxe6 {[%emt 0:01:37]} 16. b3 {[%emt 0:05:06]} b5 {[%emt 0:01:40]} 17. Nb2 {[%emt 0:01:09]} Bxc3 {[%emt 0:01:32]} 18. Qe2 {[%emt 0:04:45]} Qxa2 19. Qc2 {[%emt 0:01:58]} Qa1+ {[%emt 0:02:17]} 20. Qb1 {[%emt 0:00:48]} Bxb2+ {[%emt 0:00:10]} 21. Kc2 {[%emt 0:00:56]} Qxb1+ {[%emt 0:00:07]} 22. Rxb1 {[%emt 0:00:27]} Bg7 {[%emt 0:00:05]} 23. Bxb5 {[%emt 0:00:52]} Nd4+ {[%emt 0:00:07]} 0-1

[Event "HUN-chT Youth 2019"]
[Site "Budapest"]
[Date "2019.10.27"]
[Round "2.5"]
[White "Toth, Timea"]
[Black "Benedek, Huba"]
[Result "0-1"]
[ECO "C11"]
[WhiteElo "1964"]
[BlackElo "1125"]
[Annotator "NA RC"]
[PlyCount "62"]
[EventDate "2019.10.26"]
[EventType "team-tourn"]
[EventCountry "HUN"]
[SourceTitle "playchess.com"]
[Source "ChessBase"]
[SourceQuality "1"]
[TimeControl "5400+30"]

1. e4 {[%emt 0:00:00]} e6 {[%emt 0:00:00]} 2. d4 {[%emt 0:00:00]} d5 {[%emt 0:00:00]} 3. Nc3 {[%emt 0:00:00]} Nf6 {[%emt 0:00:00]} 4. Bg5 {[%emt 0:00:19]} dxe4 {[%emt 0:00:04]} 5. Nxe4 {[%emt 0:00:56]} Be7 {[%emt 0:00:10]} 6. Bxf6 {[%emt 0:01:52]} Bxf6 {[%emt 0:00:11]} 7. Nf3 {[%emt 0:03:47]} O-O {[%emt 0:01:12]} 8. Bc4 {[%emt 0:03:35]} Nc6 {[%emt 0:03:54]} 9. Nxf6+ {[%emt 0:01:53]} Qxf6 {[%emt 0:00:21]} 10. O-O {[%emt 0:02:17]} Rd8 {[%emt 0:02:18]} 11. c3 {[%emt 0:00:38]} b6 {[%emt 0:07:06]} 12. Re1 {[%emt 0:05:15]} Bb7 {[%emt 0:01:20]} 13. Qe2 {[%emt 0:11:49]} Ne7 {[%emt 0:02:50]} 14. Ne5 {[%emt 0:13:42]} Nd5 {[%emt 0:10:06]} 15. Bxd5 {[%emt 0:23:08]} Bxd5 {[%emt 0:00:46]} 16. Qg4 {[%emt 0:01:06]} g6 {[%emt 0:04:29]} 17. Qg3 {[%emt 0:08:09]} Rac8 {[%emt 0:04:26]} 18. Nd3 {[%emt 0:01:27]} h6 {[%emt 0:04:22]} 19. Nf4 {[%emt 0:01:19]} Qg5 {[%emt 0:00:49]} 20. Qxg5 {[%emt 0:00:34]} hxg5 {[%emt 0:00:08]} 21. Nxd5 {[%emt 0:00:33]} Rxd5 {[%emt 0:00:37]} 22. Rad1 {[%emt 0:00:04]} Rcd8 {[%emt 0:00:27]} 23. Re3 {[%emt 0:01:25]} c5 {[%emt 0:01:07]} 24. Red3 {[%emt 0:02:13]} cxd4 {[%emt 0:00:11]} 25. Rxd4 {[%emt 0:00:15]} Rxd4 {[%emt 0:00:08]} 26. Rxd4 {[%emt 0:00:05]} Rc8 {[%emt 0:02:58]} 27. Rd7 {[%emt 0:00:30]} Ra8 {[%emt 0:01:14]} 28. c4 {[%emt 0:00:32]} Kf8 {[%emt 0:01:27]} 29. b3 {[%emt 0:00:40]} Ke8 {[%emt 0:00:45]} 30. Rc7 {[%emt 0:00:10]} Rd8 {[%emt 0:01:10]} 31. Rxa7 {[%emt 0:00:15]} Rd1# {[%emt 0:00:12]} 0-1

[Event "HUN-chT Youth 2019"]
[Site "Budapest"]
[Date "2019.10.27"]
[Round "2.5"]
[White "Ivan, Reka Gyongyver"]
[Black "Palczert, Hajnalka"]
[Result "0-1"]
[ECO "A48"]
[WhiteElo "1686"]
[BlackElo "1531"]
[Annotator "NA"]
[PlyCount "102"]
[EventDate "2019.10.26"]
[EventType "team-tourn"]
[EventCountry "HUN"]
[SourceTitle "playchess.com"]
[Source "ChessBase"]
[SourceQuality "1"]
[TimeControl "5400+30"]

1. d4 {[%emt 0:00:00]} Nf6 {[%emt 0:00:00]} 2. Bf4 {[%emt 0:00:13]} g6 {[%emt 0:01:02]} 3. Nf3 {[%emt 0:00:17]} Bg7 {[%emt 0:00:53]} 4. Nc3 {[%emt 0:01:28]} d5 {[%emt 0:01:33]} 5. Qd2 {[%emt 0:00:49]} O-O {[%emt 0:00:39]} 6. Bh6 {[%emt 0:01:20]} c5 {[%emt 0:02:13]} 7. h4 {[%emt 0:17:40]} cxd4 {[%emt 0:10:05]} 8. Nxd4 {[%emt 0:01:10]} Nc6 {[%emt 0:03:22]} 9. Nf3 {[%emt 0:28:53]} Bf5 {[%emt 0:06:52]} 10. Bxg7 {[%emt 0:09:06]} Kxg7 {[%emt 0:00:47]} 11. O-O-O {[%emt 0:09:20]} e6 {[%emt 0:03:22]} 12. Qf4 {[%emt 0:04:19]} Qb6 {[%emt 0:02:18]} 13. e3 {[%emt 0:05:23]} Bg4 {[%emt 0:05:43]} 14. Be2 {[%emt 0:02:51]} Rac8 {[%emt 0:03:00]} 15. Rdg1 {[%emt 0:07:07]} Qb4 {[%emt 0:06:29]} 16. Qxb4 {[%emt 0:06:31]} Nxb4 {[%emt 0:00:03]} 17. a3 {[%emt 0:00:36]} Nc6 {[%emt 0:01:07]} 18. Nh2 {[%emt 0:01:13]} Bxe2 {[%emt 0:00:59]} 19. Nxe2 {[%emt 0:00:10]} Ne4 {[%emt 0:01:39]} 20. Rf1 {[%emt 0:00:23]} Ne5 {[%emt 0:01:26]} 21. Kd1 {[%emt 0:01:03]} Nc4 {[%emt 0:01:40]} 22. Kc1 {[%emt 0:00:30]} Ncd2 {[%emt 0:07:57]} 23. Re1 {[%emt 0:00:33]} Nb3+ {[%emt 0:10:07]} 24. Kb1 {[%emt 0:00:06]} Ned2+ {[%emt 0:06:16]} 25. Ka2 {[%emt 0:00:07]} Rxc2 {[%emt 0:01:23]} 26. Nd4 {[%emt 0:01:12]} Nxd4 {[%emt 0:00:42]} 27. exd4 {[%emt 0:00:04]} Nc4 {[%emt 0:00:52]} 28. Rb1 {[%emt 0:00:34]} Rxf2 {[%emt 0:00:38]} 29. Rhg1 {[%emt 0:00:34]} Rc8 {[%emt 0:02:14]} 30. Nf3 {[%emt 0:00:45]} Nd2 {[%emt 0:01:18]} 31. Nxd2 {[%emt 0:00:25]} Rxd2 {[%emt 0:00:07]} 32. Rgd1 {[%emt 0:00:41]} Rxg2 {[%emt 0:00:59]} 33. Ka1 {[%emt 0:00:25]} Rh2 {[%emt 0:00:42]} 34. Rh1 {[%emt 0:00:14]} Rcc2 {[%emt 0:00:43]} 35. Rhc1 {[%emt 0:00:43]} Rxc1 {[%emt 0:01:17]} 36. Rxc1 {[%emt 0:00:04]} Rxh4 {[%emt 0:01:02]} 37. Rc7 {[%emt 0:00:18]} Rxd4 {[%emt 0:00:24]} 38. Rxb7 {[%emt 0:00:05]} Ra4 {[%emt 0:00:31]} 39. Ka2 {[%emt 0:00:11]} h5 {[%emt 0:00:48]} 40. Rb3 {[%emt 0:00:30]} h4 {[%emt 0:00:48]} 41. Kb1 {[%emt 0:00:21]} Rc4 {[%emt 0:01:10]} 42. Rh3 {[%emt 0:00:18]} g5 {[%emt 0:00:18]} 43. b3 {[%emt 0:00:12]} Rg4 {[%emt 0:00:58]} 44. Kc2 {[%emt 0:00:13]} Rg3 {[%emt 0:00:25]} 45. Rh2 {[%emt 0:00:13]} h3 {[%emt 0:00:19]} 46. Kd1 {[%emt 0:00:43]} Rxb3 {[%emt 0:00:19]} 47. Ke1 {[%emt 0:00:07]} Rxa3 {[%emt 0:00:18]} 48. Kf1 {[%emt 0:01:10]} Ra1+ {[%emt 0:00:10]} 49. Kf2 {[%emt 0:00:05]} Ra2+ {[%emt 0:00:05]} 50. Kg3 {[%emt 0:00:03]} Rxh2 {[%emt 0:00:13]} 51. Kxh2 {[%emt 0:00:07]} a5 {[%emt 0:00:25]} 0-1

[Event "HUN-chT Youth 2019"]
[Site "Budapest"]
[Date "2019.10.27"]
[Round "2.6"]
[White "Kreiter, Lilla"]
[Black "Kiraly, Lilla Virag"]
[Result "1-0"]
[ECO "B14"]
[WhiteElo "1280"]
[BlackElo "1450"]
[Annotator "NA"]
[PlyCount "115"]
[EventDate "2019.10.26"]
[EventType "team-tourn"]
[EventCountry "HUN"]
[SourceTitle "playchess.com"]
[Source "ChessBase"]
[SourceQuality "1"]
[TimeControl "5400+30"]

1. e4 {[%emt 0:00:00]} c6 {[%emt 0:00:00]} 2. d4 {[%emt 0:00:00]} d5 {[%emt 0:00:00]} 3. exd5 {[%emt 0:01:51]} cxd5 {[%emt 0:00:01]} 4. c4 {[%emt 0:03:23]} Nf6 {[%emt 0:00:48]} 5. Nc3 {[%emt 0:01:13]} e6 {[%emt 0:00:15]} 6. a3 {[%emt 0:03:14]} Nc6 {[%emt 0:02:29]} 7. Nf3 {[%emt 0:03:05]} Be7 {[%emt 0:02:42]} 8. Be2 {[%emt 0:00:59]} O-O {[%emt 0:03:49]} 9. O-O {[%emt 0:01:55]} a6 {[%emt 0:03:36]} 10. Bf4 {[%emt 0:04:27]} Bd6 {[%emt 0:15:30]} 11. Be5 {[%emt 0:06:18]} dxc4 {[%emt 0:04:30]} 12. Bxc4 {[%emt 0:04:46]} Bxe5 {[%emt 0:02:38]} 13. dxe5 {[%emt 0:01:58]} Nd7 {[%emt 0:00:30]} 14. Re1 {[%emt 0:01:08]} Qb6 {[%emt 0:04:16]} 15. Qc2 {[%emt 0:09:04]} h6 {[%emt 0:05:00]} 16. Ba2 {[%emt 0:04:17]} Qc7 {[%emt 0:04:31]} 17. Bb1 {[%emt 0:03:22]} f5 {[%emt 0:15:30]} 18. exf6 {[%emt 0:02:11]} Nxf6 {[%emt 0:00:17]} 19. Ne4 {[%emt 0:03:16]} Qf4 {[%emt 0:09:59]} 20. Nxf6+ {[%emt 0:02:27]} Qxf6 {[%emt 0:01:56]} 21. Ra2 {[%emt 0:03:34]} Bd7 {[%emt 0:10:17]} 22. Qg6 {[%emt 0:01:58]} Qxg6 {[%emt 0:01:13]} 23. Bxg6 {[%emt 0:00:17]} Rf6 {[%emt 0:00:34]} 24. Bd3 {[%emt 0:01:20]} Be8 {[%emt 0:00:43]} 25. b4 {[%emt 0:01:07]} Rd8 {[%emt 0:01:10]} 26. Bc4 {[%emt 0:01:55]} Bf7 {[%emt 0:03:57]} 27. Rae2 {[%emt 0:01:18]} Nd4 {[%emt 0:01:55]} 28. Nxd4 {[%emt 0:01:38]} Rxd4 {[%emt 0:00:10]} 29. Ba2 {[%emt 0:00:56]} Kf8 {[%emt 0:01:14]} 30. g3 {[%emt 0:00:30]} Ke7 {[%emt 0:00:20]} 31. f4 {[%emt 0:01:25]} g6 {[%emt 0:00:52]} 32. Re5 {[%emt 0:02:26]} Kd6 {[%emt 0:01:22]} 33. R1e3 {[%emt 0:01:56]} Rd1+ {[%emt 0:01:25]} 34. Kg2 {[%emt 0:00:51]} Rd2+ {[%emt 0:01:25]} 35. Re2 {[%emt 0:00:24]} Rd3 {[%emt 0:00:56]} 36. R5e3 {[%emt 0:00:25]} Rd4 {[%emt 0:00:30]} 37. Rc3 {[%emt 0:01:41]} Kd7 {[%emt 0:00:36]} 38. Bb1 {[%emt 0:02:06]} Rd6 {[%emt 0:00:45]} 39. Rd3 {[%emt 0:00:34]} Rxd3 {[%emt 0:00:56]} 40. Bxd3 {[%emt 0:00:08]} g5 {[%emt 0:00:37]} 41. fxg5 {[%emt 0:00:35]} hxg5 {[%emt 0:00:08]} 42. Rc2 {[%emt 0:00:32]} Bg6 {[%emt 0:00:27]} 43. Bxg6 {[%emt 0:01:09]} Rxg6 {[%emt 0:00:10]} 44. Kf3 {[%emt 0:00:15]} Rg7 {[%emt 0:00:50]} 45. Kg4 {[%emt 0:00:19]} Kd6 {[%emt 0:00:36]} 46. Rc5 {[%emt 0:01:19]} Rh7 {[%emt 0:00:53]} 47. Rc2 {[%emt 0:02:39]} Rg7 {[%emt 0:00:17]} 48. Kh5 {[%emt 0:00:39]} Ke5 {[%emt 0:00:40]} 49. Kh6 {[%emt 0:00:47]} Rd7 {[%emt 0:00:31]} 50. Kxg5 {[%emt 0:00:26]} Rd3 {[%emt 0:00:27]} 51. Re2+ {[%emt 0:00:44]} Kd5 {[%emt 0:00:34]} 52. g4 {[%emt 0:02:15]} Rxa3 {[%emt 0:00:22]} 53. h4 {[%emt 0:01:27]} Rb3 {[%emt 0:00:37]} 54. h5 {[%emt 0:00:18]} Rh3 {[%emt 0:00:32]} 55. h6 {[%emt 0:00:48]} b6 {[%emt 0:00:27]} 56. Kg6 {[%emt 0:01:18]} a5 {[%emt 0:00:31]} 57. bxa5 {[%emt 0:00:32]} bxa5 {[%emt 0:00:16]} 58. h7 {[%emt 0:01:43]} 1-0

[Event "HUN-chT Youth 2019"]
[Site "Budapest"]
[Date "2019.10.27"]
[Round "2.6"]
[White "Koronczai, Csongor"]
[Black "Bod, Marton"]
[Result "1-0"]
[ECO "B30"]
[WhiteElo "1088"]
[BlackElo "1131"]
[Annotator "NA RC"]
[PlyCount "51"]
[EventDate "2019.10.26"]
[EventType "team-tourn"]
[EventCountry "HUN"]
[SourceTitle "playchess.com"]
[Source "ChessBase"]
[SourceQuality "1"]
[TimeControl "5400+30"]

1. e4 {[%emt 0:00:00]} c5 {[%emt 0:00:00]} 2. Nf3 {[%emt 0:00:00]} Nc6 {[%emt 0:00:00]} 3. g3 {[%emt 0:00:00]} g6 {[%emt 0:00:00]} 4. Bg2 {[%emt 0:00:20]} Bg7 {[%emt 0:00:10]} 5. Nc3 {[%emt 0:00:21]} Nf6 {[%emt 0:00:32]} 6. O-O {[%emt 0:01:22]} d5 {[%emt 0:00:14]} 7. d3 {[%emt 0:01:23]} O-O {[%emt 0:01:17]} 8. Bf4 {[%emt 0:04:19]} dxe4 {[%emt 0:02:57]} 9. dxe4 {[%emt 0:01:29]} Qa5 {[%emt 0:02:48]} 10. Qe2 {[%emt 0:03:51]} Rd8 {[%emt 0:01:32]} 11. Rfd1 {[%emt 0:01:29]} Rxd1+ {[%emt 0:01:44]} 12. Rxd1 {[%emt 0:00:15]} Nh5 {[%emt 0:03:18]} 13. e5 {[%emt 0:05:58]} Nxf4 {[%emt 0:01:03]} 14. gxf4 {[%emt 0:00:34]} Bg4 {[%emt 0:00:19]} 15. h3 {[%emt 0:02:24]} Bh5 {[%emt 0:02:56]} 16. Rd7 {[%emt 0:02:52]} Rb8 {[%emt 0:03:32]} 17. a3 {[%emt 0:04:16]} Bh6 {[%emt 0:02:43]} 18. e6 {[%emt 0:04:04]} f5 {[%emt 0:00:39]} 19. Nd5 {[%emt 0:05:10]} Bf8 {[%emt 0:02:58]} 20. Qe3 {[%emt 0:04:03]} Bxf3 {[%emt 0:01:05]} 21. Qxf3 {[%emt 0:01:10]} Qe1+ {[%emt 0:00:21]} 22. Kh2 {[%emt 0:00:34]} Qxe6 {[%emt 0:00:22]} 23. Rc7 {[%emt 0:01:28]} Qd6 {[%emt 0:03:19]} 24. Qb3 {[%emt 0:02:49]} e6 {[%emt 0:00:33]} 25. Nf6+ {[%emt 0:00:30]} Kh8 {[%emt 0:01:25]} 26. Rxh7# {[%emt 0:00:10]} 1-0

[Event "HUN-chT Youth 2019"]
[Site "Budapest"]
[Date "2019.10.27"]
[Round "2.7"]
[White "Szabo, Marton Nandor"]
[Black "Konyves, Almos"]
[Result "1/2-1/2"]
[ECO "A09"]
[WhiteElo "1803"]
[BlackElo "2006"]
[Annotator "NA RC"]
[PlyCount "45"]
[EventDate "2019.10.26"]
[EventType "team-tourn"]
[EventCountry "HUN"]
[SourceTitle "playchess.com"]
[Source "ChessBase"]
[SourceQuality "1"]
[TimeControl "5400+30"]

1. Nf3 {[%emt 0:00:00]} d5 {[%emt 0:00:00]} 2. c4 {[%emt 0:00:00]} d4 {[%emt 0:00:00]} 3. d3 {[%emt 0:04:39]} Nc6 {[%emt 0:00:06]} 4. g3 {[%emt 0:01:12]} e5 {[%emt 0:00:46]} 5. Bg2 {[%emt 0:00:10]} Nf6 {[%emt 0:00:08]} 6. Bg5 {[%emt 0:07:45]} Bb4+ {[%emt 0:02:50]} 7. Nbd2 {[%emt 0:01:32]} h6 {[%emt 0:01:19]} 8. Bxf6 {[%emt 0:00:07]} Qxf6 {[%emt 0:00:06]} 9. a3 {[%emt 0:00:20]} Bxd2+ {[%emt 0:00:16]} 10. Nxd2 {[%emt 0:03:43]} a5 {[%emt 0:00:58]} 11. Qc2 {[%emt 0:16:28]} O-O {[%emt 0:04:31]} 12. O-O {[%emt 0:02:19]} Bd7 {[%emt 0:06:20]} 13. Rad1 {[%emt 0:06:48]} Qe7 {[%emt 0:05:58]} 14. Rfe1 {[%emt 0:08:40]} f5 {[%emt 0:04:55]} 15. e3 {[%emt 0:03:28]} Qf6 {[%emt 0:07:51]} 16. Nb3 {[%emt 0:11:38]} dxe3 {[%emt 0:06:09]} 17. fxe3 {[%emt 0:00:42]} f4 {[%emt 0:04:34]} 18. Qf2 {[%emt 0:07:02]} Qg5 {[%emt 0:12:43]} 19. d4 {[%emt 0:05:48]} Bg4 {[%emt 0:01:42]} 20. Rd2 {[%emt 0:00:49]} a4 {[%emt 0:04:55]} 21. Nc5 {[%emt 0:00:47]} exd4 {[%emt 0:02:43]} 22. Bd5+ {[%emt 0:00:43]} Kh8 {[%emt 0:00:37]} 23. exf4 {[%emt 0:00:24]} 1/2-1/2

[Event "HUN-chT Youth 2019"]
[Site "Budapest"]
[Date "2019.10.27"]
[Round "2.8"]
[White "Gombocz, Zsofia"]
[Black "Baski, Barnabas"]
[Result "0-1"]
[ECO "C07"]
[WhiteElo "1917"]
[BlackElo "2037"]
[Annotator "NA"]
[PlyCount "152"]
[EventDate "2019.10.26"]
[EventType "team-tourn"]
[EventCountry "HUN"]
[SourceTitle "playchess.com"]
[Source "ChessBase"]
[SourceQuality "1"]
[TimeControl "5400+30"]

1. e4 {[%emt 0:00:00]} e6 {[%emt 0:00:00]} 2. d4 {[%emt 0:00:00]} d5 {[%emt 0:00:00]} 3. Nd2 {[%emt 0:00:00]} c5 {[%emt 0:00:00]} 4. exd5 {[%emt 0:00:45]} Qxd5 {[%emt 0:00:07]} 5. Ngf3 {[%emt 0:00:06]} cxd4 {[%emt 0:00:13]} 6. Bc4 {[%emt 0:00:11]} Qd7 {[%emt 0:00:14]} 7. O-O {[%emt 0:02:06]} Nc6 {[%emt 0:00:12]} 8. Nb3 {[%emt 0:00:35]} a6 {[%emt 0:00:16]} 9. Nbxd4 {[%emt 0:01:16]} Nxd4 {[%emt 0:00:24]} 10. Nxd4 {[%emt 0:00:07]} Qc7 {[%emt 0:00:28]} 11. Qe2 {[%emt 0:02:33]} Bd6 {[%emt 0:00:20]} 12. h3 {[%emt 0:00:13]} Ne7 {[%emt 0:00:23]} 13. Bd3 {[%emt 0:04:16]} O-O {[%emt 0:03:45]} 14. c4 {[%emt 0:02:38]} e5 {[%emt 0:06:47]} 15. Nf3 {[%emt 0:12:12]} h6 {[%emt 0:16:31]} 16. Re1 {[%emt 0:24:26]} Nc6 {[%emt 0:11:40]} 17. Be4 {[%emt 0:07:12]} Re8 {[%emt 0:05:29]} 18. Be3 {[%emt 0:09:21]} Be6 {[%emt 0:07:40]} 19. c5 {[%emt 0:08:28]} Bf8 {[%emt 0:03:12]} 20. g4 {[%emt 0:06:49]} Rad8 {[%emt 0:12:55]} 21. Qc2 {[%emt 0:06:50]} Bd5 {[%emt 0:11:45]} 22. Bxd5 {[%emt 0:02:11]} Rxd5 {[%emt 0:00:21]} 23. Qe4 {[%emt 0:00:46]} Red8 {[%emt 0:01:11]} 24. g5 {[%emt 0:02:26]} Nd4 {[%emt 0:03:58]} 25. Rac1 {[%emt 0:03:23]} Nxf3+ {[%emt 0:06:11]} 26. Qxf3 {[%emt 0:00:07]} hxg5 {[%emt 0:01:46]} 27. Bxg5 {[%emt 0:00:16]} f6 {[%emt 0:01:35]} 28. Be3 {[%emt 0:00:09]} Qf7 {[%emt 0:00:45]} 29. b4 {[%emt 0:01:35]} Rd3 {[%emt 0:01:34]} 30. Qg2 {[%emt 0:01:02]} Qd5 {[%emt 0:02:04]} 31. Qxd5+ {[%emt 0:00:23]} R8xd5 {[%emt 0:00:15]} 32. Rc2 {[%emt 0:00:43]} f5 {[%emt 0:00:40]} 33. Kg2 {[%emt 0:00:25]} Be7 {[%emt 0:00:59]} 34. f4 {[%emt 0:01:54]} e4 {[%emt 0:00:30]} 35. Ree2 {[%emt 0:00:22]} Kf7 {[%emt 0:00:49]} 36. a4 {[%emt 0:00:28]} Ra3 {[%emt 0:01:12]} 37. Ra2 {[%emt 0:00:05]} Rdd3 {[%emt 0:00:24]} 38. Rxa3 {[%emt 0:00:56]} Rxa3 {[%emt 0:00:02]} 39. a5 {[%emt 0:00:13]} Rb3 {[%emt 0:00:27]} 40. Bd2 {[%emt 0:00:06]} Ke6 {[%emt 0:00:20]} 41. Be1 {[%emt 0:00:37]} Bf6 {[%emt 0:00:54]} 42. Rc2 {[%emt 0:00:35]} Rb2 {[%emt 0:01:00]} 43. Rxb2 {[%emt 0:00:13]} Bxb2 {[%emt 0:00:07]} 44. b5 {[%emt 0:01:02]} Kd7 {[%emt 0:01:50]} 45. c6+ {[%emt 0:01:11]} bxc6 {[%emt 0:00:35]} 46. bxa6 {[%emt 0:00:19]} Kc7 {[%emt 0:00:25]} 47. Bf2 {[%emt 0:00:20]} Kb8 {[%emt 0:00:20]} 48. a7+ {[%emt 0:00:15]} Ka8 {[%emt 0:00:14]} 49. Bc5 {[%emt 0:00:13]} Bc3 {[%emt 0:00:43]} 50. a6 {[%emt 0:00:26]} Bd2 {[%emt 0:00:32]} 51. Kg3 {[%emt 0:00:06]} Be1+ {[%emt 0:00:33]} 52. Kg2 {[%emt 0:00:07]} Bh4 {[%emt 0:00:26]} 53. Kf1 {[%emt 0:01:35]} Bg3 {[%emt 0:00:39]} 54. Be3 {[%emt 0:00:09]} g6 {[%emt 0:00:31]} 55. Ke2 {[%emt 0:00:12]} Bh4 {[%emt 0:00:41]} 56. Bc5 {[%emt 0:00:11]} Bd8 {[%emt 0:00:31]} 57. Kf2 {[%emt 0:00:31]} Bc7 {[%emt 0:00:20]} 58. Ke3 {[%emt 0:00:10]} Bd8 {[%emt 0:00:38]} 59. Kf2 {[%emt 0:00:06]} Bf6 {[%emt 0:00:24]} 60. Ke2 {[%emt 0:00:12]} Bc3 {[%emt 0:00:30]} 61. Ke3 {[%emt 0:00:21]} Bb2 {[%emt 0:00:35]} 62. Kf2 {[%emt 0:00:13]} Bc1 {[%emt 0:00:24]} 63. Kg3 {[%emt 0:00:08]} Bd2 {[%emt 0:00:16]} 64. h4 {[%emt 0:00:58]} Bc1 {[%emt 0:00:22]} 65. Bb6 {[%emt 0:02:30]} Ba3 {[%emt 0:00:17]} 66. Kf2 {[%emt 0:01:51]} c5 {[%emt 0:00:29]} 67. Ke2 {[%emt 0:00:30]} Bc1 {[%emt 0:01:07]} 68. Bxc5 {[%emt 0:00:25]} Bxf4 {[%emt 0:00:11]} 69. Kf2 {[%emt 0:00:20]} Be5 {[%emt 0:00:37]} 70. Ke3 {[%emt 0:01:02]} Bf6 {[%emt 0:00:15]} 71. h5 {[%emt 0:00:11]} Bg5+ {[%emt 0:00:14]} 72. Kd4 {[%emt 0:00:22]} gxh5 {[%emt 0:00:08]} 73. Ke5 {[%emt 0:00:22]} h4 {[%emt 0:00:59]} 74. Kxf5 {[%emt 0:00:17]} h3 {[%emt 0:00:26]} 75. Bd6 {[%emt 0:01:13]} e3 {[%emt 0:00:20]} 76. Kg4 {[%emt 0:00:07]} e2 {[%emt 0:00:13]} 0-1